fUST/lending_fUST_20260428
["ID","MTS","AMOUNT","RATE_DAILY","PERIOD"]
[421292647,1777371041465,-578.20924308,0.00011661,2]
[421292648,1777371041475,-1236.8063859,0.00011699,2]
[421292649,1777371041484,-5261.52432322,0.00011699,2]
[421292650,1777371041496,-3536.23883582,0.00011699,2]
[421292688,1777371048989,-2734.30346923,0.00011699,2]
[421292689,1777371049000,-284.64068081,0.00011699,2]
[421292691,1777371049333,-1578.07561412,0.00011699,2]
[421292692,1777371049343,-585.0,0.00011699,2]
[421292693,1777371049352,-599.60298507,0.00011716,2]
[421292694,1777371049361,-4130.41602018,0.00011751,2]
[421292695,1777371049605,-1408.84808715,0.00011751,2]
[421292696,1777371049615,-621.78829552,0.00011771,2]
[421292697,1777371049624,-644.79446246,0.00011826,2]
[421292698,1777371049634,-5813.07742304,0.00011851,2]
[421292699,1777371049644,-668.65185757,0.00011881,2]
[421292700,1777371049653,-155.0,0.00011899,2]
[421292701,1777371049663,-500.0,0.000119,2]
[421292702,1777371049672,-500.0,0.000119,2]
[421292703,1777371049682,-500.0,0.000119,2]
[421292704,1777371049693,-500.0,0.000119,2]
[421292705,1777371049702,-500.0,0.000119,2]
[421292706,1777371049711,-500.0,0.000119,2]
[421292707,1777371049720,-500.0,0.000119,2]
[421292708,1777371049729,-500.0,0.000119,2]
[421292709,1777371049739,-500.0,0.000119,2]
[421292710,1777371049750,-500.0,0.000119,2]
[421292711,1777371049760,-500.0,0.000119,2]
[421292712,1777371049769,-500.0,0.000119,2]
[421292713,1777371049778,-500.0,0.000119,2]
[421292714,1777371049788,-500.0,0.000119,2]
[421292715,1777371049797,-500.0,0.000119,2]
[421292716,1777371049807,-500.0,0.000119,2]
[421292717,1777371049816,-500.0,0.000119,2]
[421292718,1777371049826,-500.0,0.000119,2]
[421292719,1777371049835,-500.0,0.000119,2]
[421292720,1777371049844,-500.0,0.000119,2]
[421292721,1777371049854,-500.0,0.000119,2]
[421292722,1777371049863,-500.0,0.000119,2]
[421292723,1777371049872,-500.0,0.000119,2]
[421292724,1777371049882,-500.0,0.000119,2]
[421292725,1777371049891,-500.0,0.000119,2]
[421292726,1777371049900,-500.0,0.000119,2]
[421292727,1777371049910,-500.0,0.000119,2]
[421292728,1777371049919,-500.0,0.000119,2]
[421292729,1777371049928,-500.0,0.000119,2]
[421292730,1777371049937,-500.0,0.000119,2]
[421292731,1777371049946,-500.0,0.000119,2]
[421292732,1777371049956,-500.0,0.000119,2]
[421292733,1777371049966,-500.0,0.000119,2]
[421292734,1777371049975,-500.0,0.000119,2]
[421292735,1777371049984,-500.0,0.000119,2]
[421292736,1777371049994,-500.0,0.000119,2]
[421292737,1777371050003,-500.0,0.000119,2]
[421292738,1777371050012,-500.0,0.000119,2]
[421292739,1777371050265,-500.0,0.000119,2]
[421292740,1777371050274,-500.0,0.000119,2]
[421292741,1777371050284,-500.0,0.000119,2]
[421292742,1777371050293,-500.0,0.000119,2]
[421292743,1777371050303,-500.0,0.000119,2]
[421292744,1777371050312,-500.0,0.000119,2]
[421292745,1777371050321,-500.0,0.000119,2]
[421292746,1777371050331,-500.0,0.000119,2]
[421292747,1777371050340,-500.0,0.000119,2]
[421292748,1777371050350,-500.0,0.000119,2]
[421292749,1777371050359,-500.0,0.000119,2]
[421292750,1777371050368,-500.0,0.000119,2]
[421292751,1777371050378,-500.0,0.000119,2]
[421292752,1777371050387,-500.0,0.000119,2]
[421292753,1777371050396,-500.0,0.000119,2]
[421292754,1777371050406,-500.0,0.000119,2]
[421292755,1777371050415,-500.0,0.000119,2]
[421292756,1777371050424,-500.0,0.000119,2]
[421292757,1777371050434,-500.0,0.000119,2]
[421292758,1777371050443,-500.0,0.000119,2]
[421292759,1777371050452,-500.0,0.000119,2]
[421292760,1777371050461,-500.0,0.000119,2]
[421292761,1777371050471,-500.0,0.000119,2]
[421292762,1777371050480,-500.0,0.000119,2]
[421292763,1777371050490,-500.0,0.000119,2]
[421292764,1777371050499,-500.0,0.000119,2]
[421292765,1777371050508,-500.0,0.000119,2]
[421292766,1777371050518,-500.0,0.000119,2]
[421292767,1777371050527,-500.0,0.000119,2]
[421292768,1777371050536,-500.0,0.000119,2]
[421292769,1777371050545,-500.0,0.000119,2]
[421292770,1777371050554,-500.0,0.000119,2]
[421292771,1777371050563,-500.0,0.000119,2]
[421292772,1777371050572,-500.0,0.000119,2]
[421292773,1777371050581,-500.0,0.000119,2]
[421292774,1777371050590,-500.0,0.000119,2]
[421292775,1777371050600,-500.0,0.000119,2]
[421292776,1777371050609,-500.0,0.000119,2]
[421292777,1777371050618,-500.0,0.000119,2]
[421292778,1777371050627,-500.0,0.000119,2]
[421292779,1777371050637,-500.0,0.000119,2]
[421292780,1777371050646,-161.33,0.000119,2]
[421292781,1777371050655,-500.0,0.000119,2]
[421292782,1777371050664,-500.0,0.000119,2]
[421292783,1777371050673,-500.0,0.000119,2]
[421292784,1777371050683,-500.0,0.000119,2]
[421292785,1777371050692,-500.0,0.000119,2]
[421292786,1777371050702,-500.0,0.000119,2]
[421292787,1777371050711,-500.0,0.000119,2]
[421292788,1777371050721,-500.0,0.000119,2]
[421292789,1777371050730,-500.0,0.000119,2]
[421292790,1777371050739,-500.0,0.000119,2]
[421292791,1777371050748,-500.0,0.000119,2]
[421292792,1777371050757,-500.0,0.000119,2]
[421292793,1777371050767,-500.0,0.000119,2]
[421292794,1777371050776,-156.27900975,0.000119,2]
[421292795,1777371050788,-343.72099025,0.000119,2]
[421292796,1777371050798,-500.0,0.000119,2]
[421292797,1777371050807,-500.0,0.000119,2]
[421292798,1777371050816,-500.0,0.000119,2]
[421292799,1777371050825,-500.0,0.000119,2]
[421292800,1777371050834,-109.21589437,0.000119,2]
[421292801,1777371050846,-390.78410563,0.000119,2]
[421292802,1777371050855,-500.0,0.000119,2]
[421292803,1777371050864,-5.96794598,0.00011936,2]
[421292804,1777371050876,-687.42403032,0.00011936,2]
[421292805,1777371050885,-98.48473785,0.00011948,2]
[421292806,1777371584119,200.0,0.0001099,30]
[421292807,1777371735602,2001.0,0.0001099,30]
[421292808,1777371779115,704.0,0.0001099,30]
[421292858,1777372240396,-1288.72719031,7.126e-05,2]
[421292874,1777372243144,-2405.53644296,7.126e-05,2]
[421292876,1777372243995,-14.12763327,7.126e-05,2]
[421292882,1777372246293,-1291.60873346,7.126e-05,2]
[421292883,1777372246302,-3310.72387432,7.198e-05,2]
[421292884,1777372246565,-1689.27612568,7.198e-05,2]
[421292885,1777372246574,-300.0,7.27e-05,2]
[421292886,1777372246583,-523.0,7.271e-05,2]
[421292887,1777372246593,-150.0,7.308e-05,2]
[421292888,1777372246602,-420.0,7.997e-05,2]
[421292889,1777372246611,-151.0,8.011e-05,2]
[421292890,1777372246621,-500.0,8.219e-05,2]
[421292891,1777372246630,-587.0,8.797e-05,2]
[421292892,1777372246639,-177.0,9.308e-05,2]
[421292893,1777372246648,-823.0,9.676e-05,2]
[421292894,1777372246656,-151.0,9.815e-05,2]
[421292895,1777372246666,-151.0,9.815e-05,2]
[421292896,1777372246675,-464.0,0.00010644,2]
[421292897,1777372246684,-325.5033173,0.00011258,2]
[421292898,1777372246693,-204.0,0.00011308,2]
[421292899,1777372246702,-248.30583687,0.00011315,2]
[421292900,1777372246712,-537.6845,0.00011402,2]
[421292901,1777372246721,-2150.738,0.00011402,2]
[421292902,1777372246730,-557.5788265,0.00011457,2]
[421292903,1777372246739,-151.0,0.00011498,2]
[421292904,1777372246748,-578.20924308,0.00011512,2]
[421292905,1777372246757,-599.60298507,0.00011567,2]
[421292906,1777372246766,-186.438,0.00011597,2]
[421292907,1777372246776,-445.202766,0.00011619,2]
[421292908,1777372246785,-202.80830008,0.00011619,2]
[421292909,1777372246794,-175.73380721,0.00011619,2]
[421292910,1777372246803,-537.6845,0.00011619,2]
[421292911,1777372246812,-621.78829552,0.00011622,2]
[421292912,1777372246822,-500.0,0.00011626,2]
[421292913,1777372246831,-500.0,0.00011626,2]
[421292914,1777372246840,-500.0,0.00011626,2]
[421292915,1777372246849,-500.0,0.00011626,2]
[421292916,1777372246859,-500.0,0.00011626,2]
[421292917,1777372246867,-500.0,0.00011626,2]
[421292918,1777372246876,-500.0,0.00011626,2]
[421292919,1777372246886,-500.0,0.00011626,2]
[421292920,1777372246895,-500.0,0.00011626,2]
[421292921,1777372246904,-500.0,0.00011626,2]
[421292922,1777372246912,-500.0,0.00011626,2]
[421292923,1777372246922,-500.0,0.00011626,2]
[421292924,1777372246931,-500.0,0.00011626,2]
[421292925,1777372246940,-500.0,0.00011626,2]
[421292926,1777372246949,-500.0,0.00011626,2]
[421292927,1777372246959,-500.0,0.00011626,2]
[421292928,1777372246967,-500.0,0.00011626,2]
[421292929,1777372246976,-500.0,0.00011626,2]
[421292930,1777372246985,-500.0,0.00011626,2]
[421292931,1777372246994,-500.0,0.00011626,2]
[421292932,1777372247003,-500.0,0.00011626,2]
[421292933,1777372247012,-500.0,0.00011626,2]
[421292934,1777372247021,-500.0,0.00011626,2]
[421292935,1777372247030,-500.0,0.00011626,2]
[421292936,1777372247039,-500.0,0.00011626,2]
[421292937,1777372247048,-500.0,0.00011626,2]
[421292938,1777372247057,-500.0,0.00011626,2]
[421292939,1777372247066,-500.0,0.00011626,2]
[421292940,1777372247075,-500.0,0.00011626,2]
[421292941,1777372247084,-500.0,0.00011626,2]
[421292942,1777372247093,-500.0,0.00011626,2]
[421292943,1777372247102,-500.0,0.00011626,2]
[421292944,1777372247112,-500.0,0.00011626,2]
[421292945,1777372247121,-500.0,0.00011626,2]
[421292946,1777372247130,-500.0,0.00011626,2]
[421292947,1777372247139,-500.0,0.00011626,2]
[421292948,1777372247148,-500.0,0.00011626,2]
[421292949,1777372247157,-500.0,0.00011626,2]
[421292950,1777372247166,-500.0,0.00011626,2]
[421292951,1777372247175,-500.0,0.00011626,2]
[421292952,1777372247184,-500.0,0.00011626,2]
[421292953,1777372247192,-500.0,0.00011626,2]
[421292954,1777372247202,-500.0,0.00011626,2]
[421292955,1777372247211,-152.0,0.00011628,7]
[421292956,1777372247221,-152.0,0.00011628,7]
[421292957,1777372247230,-167.73797684,0.00011674,2]
[421292958,1777372247239,-500.0,0.00011674,2]
[421292959,1777372247248,-500.0,0.00011674,2]
[421292960,1777372247257,-500.0,0.00011674,2]
[421292961,1777372247267,-500.0,0.00011674,2]
[421292962,1777372247275,-500.0,0.00011674,2]
[421292963,1777372247284,-500.0,0.00011674,2]
[421292964,1777372247294,-172.49268041,0.00011674,2]
[421292965,1777372247303,-151.5,0.00011674,2]
[421292966,1777372247312,-223.92522337,0.00011674,2]
[421292967,1777372247321,-644.79446246,0.00011677,2]
[421292968,1777372247330,-668.65185757,0.00011732,2]
[421292969,1777372247339,-693.3919763,0.00011787,2]
[421292970,1777372247348,-204.89980144,0.0001179,2]
[421292971,1777372247356,-500.0,0.00011791,2]
[421292972,1777372247365,-440.04564352,0.00011791,2]
[421292973,1777372247374,-238.54898127,0.00011791,2]
[421292974,1777372247383,-500.0,0.00011791,2]
[421292975,1777372247393,-500.0,0.00011791,2]
[421292976,1777372247402,-500.0,0.00011791,2]
[421292977,1777372247411,-193.43983487,0.00011791,2]
[421292978,1777372247420,-4466.85265747,0.00011792,2]
[421292979,1777372263346,500.0,1.1e-05,2]
[421292980,1777372263375,29.0,1.1e-05,2]
[421292996,1777372994419,-5000.0,7.246e-05,2]
[421292997,1777372994444,-1818.09132409,7.304e-05,2]
[421292998,1777372994467,-867.99730263,7.319e-05,2]
[421292999,1777372994491,-150.0,7.431e-05,2]
[421293000,1777372994512,-151.0,7.696e-05,2]
[421293001,1777372994535,-177.0,9.431e-05,2]
[421293002,1777372994559,-1835.91137328,9.987e-05,2]
[421293003,1777373008144,-3799.83718671,9.987e-05,2]
[421293004,1777373008172,-560.0,9.987e-05,2]
[421293005,1777373008198,-151.0,0.0001039,2]
[421293006,1777373008225,-151.0,0.0001039,2]
[421293007,1777373009869,5000.0,0.00011,2]
[421293008,1777373032349,338.16281329,0.00011,2]
[421293009,1777373033267,-338.16281329,0.00011,2]
[421293019,1777373307754,-152.0,9.989e-05,7]
[421293020,1777373307776,-151.8325583,0.0001041,2]
[421293021,1777373307800,-643.53837342,0.0001089,2]
[421293022,1777373307822,-573.0,0.0001089,2]
[421293023,1777373307846,-440.5212562,0.00011,2]
[421293024,1777373307870,-150.0,0.00011065,2]
[421293025,1777373307893,-1569.78805344,0.0001113,2]
[421293026,1777373307917,-500.0,0.00011131,2]
[421293027,1777373307939,-166.98428689,0.00011131,2]
[421293028,1777373307962,-500.0,0.00011131,2]
[421293029,1777373307984,-152.33547175,0.00011131,2]
[421293030,1777373308771,-191.10436312,0.00011131,2]
[421293031,1777373308794,-500.0,0.00011131,2]
[421293032,1777373308819,-4308.89563688,0.00011132,2]
[421293033,1777373309166,-5000.0,0.00011132,2]
[421293034,1777373309555,-5000.0,0.00011132,2]
[421293035,1777373310095,-5000.0,0.00011132,2]
[421293036,1777373310505,-5000.0,0.00011132,2]
[421293037,1777373310894,-5000.0,0.00011132,2]
[421293038,1777373311224,-5000.0,0.00011132,2]
[421293039,1777373311562,-5000.0,0.00011132,2]
[421293040,1777373312985,-5000.0,0.00011132,2]
[421293041,1777373320225,-5000.0,0.00011132,2]
[421293042,1777373320877,-5000.0,0.00011132,2]
[421293043,1777373322924,-5000.0,0.00011132,2]
[421293044,1777373323684,-5000.0,0.00011132,2]
[421293045,1777373331873,-5000.0,0.00011132,2]
[421293046,1777373345684,-4661.8372,0.00011132,2]
[421293165,1777373438370,-566.0,0.0001041,2]
[421293166,1777373438381,-151.0,0.0001041,2]
[421293167,1777373438392,-150.0,0.00010705,2]
[421293168,1777373438403,-464.42201735,0.00011,2]
[421293169,1777373438414,-12940.13835931,0.00011032,2]
[421293171,1777373438425,-152.0,0.00011134,7]
[421293172,1777373438435,-35341.39949318,0.0001123,2]
[421293200,1777373446921,-455.6634136,0.0001041,2]
[421293201,1777373446931,-258.41085277,0.0001123,2]
[421293202,1777373446940,-151.9406439,0.0001123,2]
[421293203,1777373446949,-204.9664166,0.0001123,2]
[421293204,1777373446959,-455.8362664,0.0001123,2]
[421293205,1777373446968,-151.0,0.0001123,2]
[421293206,1777373446977,-455.9805711,0.0001123,2]
[421293207,1777373446987,-455.9805711,0.0001123,2]
[421293208,1777373446996,-455.9805711,0.0001123,2]
[421293209,1777373447004,-455.5091694,0.0001123,2]
[421293210,1777373447014,-151.0,0.00011232,2]
[421293211,1777373447023,-455.4038635,0.00011232,2]
[421293212,1777373447033,-456.0084076,0.00011232,2]
[421293213,1777373447042,-361.53087539,0.00011315,2]
[421293214,1777373447053,-163.2997083,0.00011315,2]
[421293215,1777373447063,-445.202766,0.0001135,2]
[421293216,1777373447073,-537.6845,0.0001135,2]
[421293217,1777373447083,-537.6845,0.0001135,2]
[421293218,1777373447092,-1930.91205672,0.0001135,2]
[421293219,1777373723876,-2400.0,0.00010141,2]
[421293220,1777373750740,-246.45751752,0.00010141,2]
[421293221,1777373750761,-562.0,0.00010141,2]
[421293222,1777373750784,-610.0,0.00010242,2]
[421293223,1777373750806,-2337.16483279,0.00010243,2]
[421293224,1777373750831,-150.0,0.00010295,2]
[421293225,1777373750852,-300.0,0.00010345,2]
[421293226,1777373750875,-300.0,0.00010345,2]
[421293227,1777373750897,-300.0,0.00010345,2]
[421293228,1777373750919,-194.37764969,0.00010346,2]
[421293229,1777373752371,-4805.62235031,0.00010346,2]
[421293230,1777373752394,-194.37764969,0.00010451,2]
[421293231,1777373783533,-2455.0,0.00010243,2]
[421293232,1777373820147,-523.0,0.00010243,2]
[421293233,1777373879093,-2022.0,0.00010243,2]
[421293234,1777373879118,-564.0,0.00010243,2]
[421293235,1777373879142,-300.0,0.00010345,2]
[421293236,1777373879168,-2114.0,0.00010346,2]
[421293237,1777373882178,-2886.0,0.00010346,2]
[421293238,1777373882202,-2.49235031,0.00010451,2]
[421293239,1777373882228,-290.5444055,0.000109,2]
[421293240,1777373882254,-307.11079376,0.000109,2]
[421293241,1777373882278,-625.00364084,0.000109,2]
[421293242,1777373882304,-612.40676659,0.000109,2]
[421293243,1777373882326,-200.6506195,0.00011,2]
[421293244,1777373882484,75.7914235,0.00010899,2]
[421293245,1777373886003,-5000.0,0.00010243,2]
[421293246,1777373894261,-5000.0,0.0001079,2]
[421293247,1777373905725,-224.2085765,0.00010899,2]
[421293248,1777373909022,4775.7914235,0.0001079,2]
[421293249,1777373930427,-5000.0,0.00010682,2]
[421293250,1777373942440,-2835.04057493,0.00010682,2]
[421293251,1777374001766,-224.2085765,0.0001079,2]
[421293252,1777374001791,-571.0,0.0001079,2]
[421293253,1777374001815,-150.0,0.0001091,2]
[421293254,1777374027660,-152.0,0.00010683,7]
[421293255,1777374027687,-152.0,0.00010683,7]
[421293256,1777374027714,-152.0,0.00010683,7]
[421293257,1777374027743,-152.0,0.00010683,7]
[421293258,1777374027770,-152.0,0.00010683,7]
[421293259,1777374027799,-152.0,0.00010683,7]
[421293260,1777374027823,-1934.70703075,0.00010919,2]
[421293261,1777374027853,152.0,0.00010683,7]
[421293265,1777374054571,-1168.864,7.6e-05,2]
[421293266,1777374054593,-1601.22177545,0.0001,2]
[421293267,1777374054614,-419.91550361,0.0001,2]
[421293268,1777374054636,-1313.26719002,0.0001,2]
[421293269,1777374068814,-949.36316397,9.425e-05,2]
[421293270,1777374068840,-4050.63683603,0.00010932,2]
[421293271,1777374075341,-152.0,0.00010452,7]
[421293272,1777374075366,-152.0,0.00010452,7]
[421293273,1777374075390,-152.0,0.00010452,7]
[421293274,1777374075416,-4544.0,0.00010932,2]
[421293275,1777374086032,-2197.86690691,0.00010932,2]
[421293276,1777374086055,-573.0,0.00010932,2]
[421293277,1777374131999,1316.45751752,0.00011,2]
[421293278,1777374166564,-445.3218412,0.00011,2]
[421293279,1777374166586,-574.0,0.00011,2]
[421293280,1777374250341,-2336.96753794,0.00010822,2]
[421293281,1777374250366,-300.0,0.00010931,2]
[421293282,1777374250395,-2363.03246206,0.00010932,2]
[421293283,1777374265556,-5000.0,0.00010932,2]
[421293284,1777374266543,-5000.0,0.00010932,2]
[421293285,1777374267617,-5000.0,0.00010932,2]
[421293286,1777374320652,-300.0,0.0001093,2]
[421293287,1777374320674,-300.0,0.0001093,2]
[421293288,1777374320697,-300.0,0.0001093,2]
[421293289,1777374320720,-300.0,0.0001093,2]
[421293290,1777374320742,-1200.0,0.0001093,2]
[421293291,1777374320765,-150.0,0.0001093,2]
[421293292,1777374320788,-500.0,0.00010931,2]
[421293293,1777374320810,-500.0,0.00010931,2]
[421293294,1777374320832,-212.06130324,0.00010931,2]
[421293295,1777374320854,-393.74795297,0.00010931,2]
[421293296,1777374320877,-500.0,0.00010931,2]
[421293297,1777374320900,-344.19074379,0.00010931,2]
[421293298,1777374326004,-155.80925621,0.00010931,2]
[421293299,1777374326028,-500.0,0.00010931,2]
[421293300,1777374326052,-500.0,0.00010931,2]
[421293301,1777374326076,-500.0,0.00010931,2]
[421293302,1777374326099,-500.0,0.00010931,2]
[421293303,1777374326122,-500.0,0.00010931,2]
[421293304,1777374326149,-500.0,0.00010931,2]
[421293305,1777374326172,-500.0,0.00010931,2]
[421293306,1777374326195,-500.0,0.00010931,2]
[421293307,1777374326219,-500.0,0.00010931,2]
[421293308,1777374326243,-344.19074379,0.00010931,2]
[421293309,1777374333533,-5000.0,0.00010821,2]
[421293310,1777374337971,-155.80925621,0.00010931,2]
[421293311,1777374337996,-579.9694026,0.00010931,2]
[421293312,1777374338022,-553.91548931,0.00010931,2]
[421293313,1777374338047,-500.0,0.00010931,2]
[421293314,1777374338072,-500.0,0.00010931,2]
[421293315,1777374338098,-500.0,0.00010931,2]
[421293316,1777374338120,-1200.0,0.00010931,2]
[421293317,1777374338142,-573.0,0.00010931,2]
[421293318,1777374338167,-437.30585188,0.00010932,2]
[421293319,1777374342140,-5000.0,0.00010932,2]
[421293320,1777374411266,-152.0,0.00010924,7]
[421293321,1777374411291,-152.0,0.00010924,7]
[421293322,1777374411316,-152.0,0.00010924,7]
[421293323,1777374411338,-300.0,0.00010931,2]
[421293324,1777374411363,-4244.0,0.00010932,2]
[421293325,1777374412735,-5000.0,0.00010932,2]
[421293326,1777374414153,-5000.0,0.00010932,2]
[421293327,1777374415860,-5000.0,0.00010932,2]
[421293328,1777374420421,-7000.0,0.00010932,2]
[421293365,1777374632124,-455.9805711,0.00010408,2]
[421293367,1777374632133,-150.0,0.00010408,2]
[421293369,1777374632143,-566.0,0.00010408,2]
[421293371,1777374632153,-300.0,0.00010931,2]
[421293373,1777374632163,-480.0,0.00010931,2]
[421293375,1777374632173,-13864.25695247,0.00010932,2]
[421293378,1777374632192,-1331.37290307,0.00010932,2]
[421293380,1777374632205,-500.0,0.00010932,2]
[421293382,1777374632216,-559.62709693,0.00010932,2]
[421293468,1777374638520,-17610.31833779,0.00010932,2]
[421293469,1777374638532,-3583.73877053,0.00010932,2]
[421293470,1777374638543,-29942.82291487,0.00010932,2]
[421293471,1777374638573,-67188.43296759,0.00010932,2]
[421293558,1777374643495,-10000.0,0.00010932,2]
[421293559,1777374643651,-2907.59361649,0.00010932,2]
[421293565,1777374646867,-15286.64332034,0.00010932,2]
[421293566,1777374647188,-49100.83315631,0.00010932,2]
[421293567,1777374663612,1493.13111105,0.0001,30]
[421293568,1777374734816,-259.406,0.00010713,2]
[421293569,1777374734839,-4740.594,0.00010822,2]
[421293570,1777374748782,-259.406,0.00010822,2]
[421293571,1777374748808,-3496.594,0.00010932,2]
[421293572,1777375225917,-2705.5700765,0.00010202,2]
[421293573,1777375225942,-563.0,0.00010202,2]
[421293574,1777375225965,-1200.0,0.00010407,2]
[421293575,1777375225987,-456.0084076,0.00010408,2]
[421293576,1777375226009,-75.4215159,0.00010408,2]
[421293577,1777375227770,-249.8993064,0.00010408,2]
[421293578,1777375227793,-326.9757691,0.0001041,2]
[421293579,1777375227816,-150.0,0.00010616,2]
[421293580,1777375227839,-300.0,0.00010829,2]
[421293581,1777375227861,-300.0,0.00010829,2]
[421293582,1777375227883,-3673.1249245,0.0001083,2]
[421293583,1777375233177,-2478.0,0.0001083,2]
[421293584,1777375591133,-152.0,0.00010404,2]
[421293585,1777375591154,-566.0,0.00010404,2]
[421293586,1777375591176,-150.0,0.00010407,2]
[421293587,1777375591199,-325.5033173,0.0001041,2]
[421293588,1777375591220,-1821.0,0.00010509,2]
[421293589,1777375591241,-290.696,0.00010615,2]
[421293590,1777375591264,-152.0,0.00010888,7]
[421293591,1777375591289,-152.0,0.00010898,7]
[421293592,1777375591313,-152.0,0.00010898,7]
[421293593,1777375591334,-748.5698906,0.00010908,2]
[421293594,1777375591358,-152.0,0.00010908,7]
[421293595,1777375591380,-152.0,0.00010908,7]
[421293596,1777375591403,-152.0,0.00010908,7]
[421293597,1777375591424,-500.0,0.00010932,2]
[421293598,1777375591444,-155.0,0.00011031,2]
[421293599,1777375591467,-152.0,0.00011034,7]
[421293600,1777375591490,-152.0,0.00011034,7]
[421293601,1777375591511,-155.0,0.00011141,2]
[421293602,1777375591532,-300.0,0.00011164,2]
[421293603,1777375591555,-300.0,0.00011164,2]
[421293604,1777375591575,-537.6845,0.00011165,2]
[421293605,1777375591596,-445.202766,0.00011165,2]
[421293606,1777375591617,-537.6845,0.00011165,2]
[421293607,1777375591638,-2150.738,0.00011165,2]
[421293608,1777375591661,-152.0,0.00011168,7]
[421293609,1777375591683,-152.0,0.00011168,7]
[421293610,1777375591704,-557.5788265,0.0001122,2]
[421293611,1777375591724,-325.5033173,0.0001123,2]
[421293612,1777375591958,-324.9964153,0.0001123,2]
[421293613,1777375591978,-325.5033173,0.0001123,2]
[421293614,1777375591998,-324.9267617,0.00011232,2]
[421293615,1777375592018,-155.0,0.00011252,2]
[421293616,1777375592039,-578.20924308,0.00011275,2]
[421293617,1777375592059,-599.60298507,0.0001133,2]
[421293618,1777375592079,-155.0,0.00011362,2]
[421293619,1777375592099,-621.78829552,0.00011385,2]
[421293620,1777375592120,-644.79446246,0.0001144,2]
[421293621,1777375592140,-155.0,0.00011472,2]
[421293622,1777375592162,-668.65185757,0.00011495,2]
[421293623,1777375592185,-693.3919763,0.0001155,2]
[421293624,1777375592206,-155.0,0.00011583,2]
[421293625,1777375592229,-18.687014,0.00011605,2]
[421293657,1777375832521,-382.145,0.0001,2]
[421293659,1777375832534,-5762.165,0.0001,2]
[421293661,1777375832543,-560.0,0.0001,2]
[421293663,1777375832553,-1149.10922462,0.0001008,2]
[421293665,1777375832562,-2243.26214679,0.0001018,2]
[421293667,1777375832572,-2449.51920346,0.0001028,2]
[421293670,1777375832581,-2627.719108,0.0001038,2]
[421293673,1777375832590,-2805.91901265,0.0001048,2]
[421293700,1777375832833,-2984.11891731,0.0001058,2]
[421293702,1777375832844,-3162.31882196,0.0001068,2]
[421293704,1777375832853,-3337.41506895,0.0001078,2]
[421293706,1777375832862,-3654.18175034,0.0001098,2]
[421293708,1777375832872,-56.90488142,0.00010983,2]
[421293773,1777375838772,-1910.01266168,0.00010983,2]
[421293774,1777375838781,-18340.4928628,0.00010983,2]
[421293775,1777375838791,-4431.56799112,0.0001118,2]
[421293776,1777375838800,-5094.28651221,0.00011243,2]
[421293777,1777375838809,-537.6845,0.00011606,2]
[421293778,1777375838819,-445.202766,0.00011606,2]
[421293779,1777375838827,-537.6845,0.00011606,2]
[421293780,1777375838836,-2150.738,0.00011606,2]
[421293781,1777375838846,-500.0,0.00011612,2]
[421293782,1777375838855,-500.0,0.00011612,2]